fUST/lending_fUST_20240808
["ID","MTS","AMOUNT","RATE_DAILY","PERIOD"]
[334436387,1723097463361,-500.0,0.00028219,7]
[334436388,1723097463372,-424.31336219,0.00028219,7]
[334436389,1723097463382,-500.0,0.00028219,7]
[334436390,1723097463392,-503.77422282,0.00028219,7]
[334436391,1723097463402,-596.69,0.00028219,7]
[334436392,1723097463412,-500.0,0.00028219,7]
[334436393,1723097463422,-500.0,0.00028219,7]
[334436394,1723097463432,-500.0,0.00028219,7]
[334436395,1723097463442,-500.0,0.00028219,7]
[334436396,1723097463451,-625.0,0.00028219,7]
[334436397,1723097463461,-500.0,0.00028219,7]
[334436398,1723097463472,-1200.63,0.00028219,7]
[334436399,1723097463489,-1719.03,0.00028219,7]
[334436400,1723097463500,-500.0,0.00028219,7]
[334436401,1723097463509,-500.0,0.00028219,7]
[334436402,1723097463518,-1032.93,0.00028219,7]
[334436403,1723097463528,-500.0,0.00028219,7]
[334436404,1723097463537,-1221.05,0.00028219,7]
[334436405,1723097463549,-500.0,0.00028219,7]
[334436406,1723097463559,-687.5,0.00028219,7]
[334436407,1723097463568,-500.0,0.00028219,7]
[334436408,1723097463578,-500.0,0.00028219,7]
[334436409,1723097463587,-500.0,0.00028219,7]
[334436410,1723097463596,-500.0,0.00028219,7]
[334436411,1723097463606,-562.23,0.00028219,7]
[334436412,1723097463615,-503.62232853,0.00028219,7]
[334436413,1723097463625,-500.0,0.00028219,7]
[334436414,1723097463634,-500.0,0.00028219,7]
[334436415,1723097463643,-500.0,0.00028219,7]
[334436416,1723097463653,-1584.72,0.00028219,7]
[334436417,1723097463662,-500.0,0.00028219,7]
[334436418,1723097463673,-1735.01,0.00028219,7]
[334436419,1723097463682,-964.29,0.00028219,7]
[334436420,1723097463692,-553.06,0.00028219,7]
[334436421,1723097463702,-500.0,0.00028219,7]
[334436422,1723097463712,-579.2,0.00028219,7]
[334436423,1723097463721,-518.32,0.00028219,7]
[334436424,1723097463733,-1109.54,0.00028219,7]
[334436425,1723097463743,-500.0,0.00028219,7]
[334436426,1723097463753,-500.0,0.00028219,7]
[334436427,1723097463763,-500.0,0.00028219,7]
[334436428,1723097463772,-500.0,0.00028219,7]
[334436429,1723097463782,-1294.75,0.00028219,7]
[334436430,1723097463792,-500.0,0.00028219,7]
[334436431,1723097463802,-500.0,0.00028219,7]
[334436432,1723097463811,-500.0,0.00028219,7]
[334436433,1723097463821,-4225.77,0.00028219,7]
[334436434,1723097463831,-236.90872081,0.00028219,7]
[334436435,1723097463841,-572.08,0.00028219,7]
[334436436,1723097463850,-1565.79,0.00028219,7]
[334436437,1723097463859,-1291.46,0.00028219,7]
[334436438,1723097463869,-552.47,0.00028219,7]
[334436439,1723097463878,-500.0,0.00028219,7]
[334436440,1723097463888,-2418.34,0.00028219,7]
[334436441,1723097463898,-1739.01,0.00028219,7]
[334436442,1723097463909,-500.0,0.00028219,7]
[334436443,1723097463919,-500.0,0.00028219,7]
[334436444,1723097463928,-659.81,0.00028219,7]
[334436445,1723097463938,-2994.86,0.00028219,7]
[334436446,1723097463949,-500.0,0.00028219,7]
[334436447,1723097463959,-500.0,0.00028219,7]
[334436448,1723097463970,-1068.1,0.00028219,7]
[334436449,1723097463982,-504.65048928,0.00028219,7]
[334436450,1723097463992,-500.0,0.00028219,7]
[334436451,1723097464003,-502.03109698,0.00028219,7]
[334436452,1723097464013,-500.0,0.00028219,7]
[334436453,1723097464023,-500.0,0.00028219,7]
[334436454,1723097464033,-500.0,0.00028219,7]
[334436455,1723097464043,-771.85,0.00028219,7]
[334436456,1723097464052,-500.0,0.00028219,7]
[334436457,1723097464061,-3357.13,0.00028219,7]
[334436458,1723097464071,-4524.16,0.00028219,7]
[334436459,1723097464080,-500.0,0.00028219,7]
[334436460,1723097464089,-500.0,0.00028219,7]
[334436461,1723097464098,-500.0,0.00028219,7]
[334436462,1723097464108,-500.0,0.00028219,7]
[334436463,1723097464118,-3055.56,0.00028219,7]
[334436464,1723097464128,-2860.32,0.00028219,7]
[334436465,1723097464137,-2611.44,0.00028219,7]
[334436466,1723097464146,-500.0,0.00028219,7]
[334436467,1723097464155,-500.0,0.00028219,7]
[334436468,1723097464166,-2173.03,0.00028219,7]
[334436469,1723097464176,-500.0,0.00028219,7]
[334436470,1723097464185,-500.0,0.00028219,7]
[334436471,1723097464195,-500.0,0.00028219,7]
[334436472,1723097464205,-501.0,0.00028219,7]
[334436473,1723097464225,-1497.66,0.00028219,7]
[334436474,1723097464237,-2916.59,0.00028219,7]
[334436475,1723097464248,-15082.67,0.00028219,7]
[334436476,1723097464258,-608.74,0.00028219,7]
[334436477,1723097464268,-500.0,0.00028219,7]
[334436478,1723097464282,-500.0,0.00028219,7]
[334436479,1723097464294,-500.0,0.00028219,7]
[334436480,1723097464304,-3210.55,0.00028219,7]
[334436481,1723097464314,-741.46,0.00028219,7]
[334436482,1723097464324,-503.12,0.00028219,7]
[334436483,1723097464334,-527.37,0.00028219,7]
[334436484,1723097464344,-500.0,0.00028219,7]
[334436485,1723097464355,-500.0,0.00028219,7]
[334436486,1723097464368,-4006.01,0.00028219,7]
[334436487,1723097464378,-919.24,0.00028219,7]
[334436488,1723097464387,-500.0,0.00028219,7]
[334436489,1723097464398,-802.71,0.00028219,7]
[334436490,1723097464409,-1094.26,0.00028219,7]
[334436491,1723097464420,-500.0,0.00028219,7]
[334436492,1723097464430,-2445.43,0.00028219,7]
[334436493,1723097464440,-2524.39,0.00028219,7]
[334436494,1723097464451,-525.45,0.00028219,7]
[334436495,1723097464460,-500.0,0.00028219,7]
[334436496,1723097464471,-1510.39,0.00028219,7]
[334436497,1723097464482,-500.0,0.00028219,7]
[334436498,1723097464492,-500.0,0.00028219,7]
[334436499,1723097464502,-461.16518818,0.00028219,7]
[334436500,1723097464512,-3917.99,0.00028219,7]
[334436501,1723097464523,-532.45408298,0.00028219,7]
[334436502,1723097464532,-822.17,0.00028219,7]
[334436503,1723097464549,-771.01,0.00028219,7]
[334436504,1723097464559,-500.0,0.00028219,7]
[334436505,1723097464570,-1668.08,0.00028219,7]
[334436506,1723097464580,-500.0,0.00028219,7]
[334436507,1723097464591,-500.0,0.00028219,7]
[334436508,1723097464601,-500.0,0.00028219,7]
[334436509,1723097464611,-1266.97,0.00028219,7]
[334436510,1723097464621,-10380.83,0.00028219,7]
[334436511,1723097464630,-500.0,0.00028219,7]
[334436512,1723097464640,-655.78,0.00028219,7]
[334436513,1723097464651,-1441.39,0.00028219,7]
[334436514,1723097464660,-713.66,0.00028219,7]
[334436515,1723097464670,-514.47,0.00028219,7]
[334436516,1723097464679,-500.0,0.00028219,7]
[334436517,1723097464689,-1177.2,0.00028219,7]
[334436518,1723097464698,-5574.35,0.00028219,7]
[334436519,1723097464709,-1910.12,0.00028219,7]
[334436520,1723097464719,-6251.91,0.00028219,7]
[334436521,1723097464730,-816.09,0.00028219,7]
[334436522,1723097464740,-869.11,0.00028219,7]
[334436523,1723097464749,-913.01,0.00028219,7]
[334436524,1723097464759,-2096.19,0.00028219,7]
[334436525,1723097464769,-1855.07,0.00028219,7]
[334436526,1723097464778,-4052.01,0.00028219,7]
[334436527,1723097464788,-670.22,0.00028219,7]
[334436528,1723097464798,-1462.72,0.00028219,7]
[334436529,1723097464808,-500.0,0.00028219,7]
[334436530,1723097464817,-500.0,0.00028219,7]
[334436531,1723097464827,-2151.26,0.00028219,7]
[334436532,1723097464838,-500.0,0.00028219,7]
[334436533,1723097464847,-1697.36,0.00028219,7]
[334436534,1723097464858,-500.0,0.00028219,7]
[334436535,1723097464870,-6678.77,0.00028219,7]
[334436536,1723097464880,-500.0,0.00028219,7]
[334436537,1723097464891,-10465.71,0.00028219,7]
[334436538,1723097464902,-2728.76,0.00028219,7]
[334436539,1723097464913,-940.62,0.00028219,7]
[334436540,1723097464923,-500.0,0.00028219,7]
[334436541,1723097464933,-204.11804163,0.00028219,7]
[334436542,1723097464944,-1490.53,0.00028219,7]
[334436543,1723097464955,-501.07,0.00028219,7]
[334436544,1723097464966,-694.81,0.00028219,7]
[334436545,1723097464977,-2560.46,0.00028219,7]
[334436546,1723097464988,-500.0,0.00028219,7]
[334436547,1723097464998,-4101.69,0.00028219,7]
[334436548,1723097465008,-500.0,0.00028219,7]
[334436549,1723097465018,-583.69,0.00028219,7]
[334436550,1723097465028,-901.18,0.00028219,7]
[334436551,1723097465038,-500.0,0.00028219,7]
[334436552,1723097465047,-500.0,0.00028219,7]
[334436553,1723097465057,-587.51,0.00028219,7]
[334436554,1723097465071,-792.62,0.00028219,7]
[334436555,1723097465080,-500.0,0.00028219,7]
[334436556,1723097465090,-869.94,0.00028219,7]
[334436557,1723097465101,-1845.59,0.00028219,7]
[334436558,1723097465110,-500.0,0.00028219,7]
[334436559,1723097465119,-500.0,0.00028219,7]
[334436560,1723097465129,-647.75,0.00028219,7]
[334436561,1723097465138,-500.0,0.00028325,2]
[334436562,1723097465148,-500.0,0.00028325,2]
[334436563,1723097465158,-500.0,0.00028325,2]
[334436564,1723097465168,-493.72407335,0.00028325,2]
[334436565,1723097465178,-190.4,0.00028485,5]
[334436566,1723097465189,-194.7,0.00028485,5]
[334436567,1723097465198,-926.75,0.00028493,7]
[334436568,1723097465208,-516.33,0.00028493,7]
[334436569,1723097465217,-616.52,0.00028493,7]
[334436570,1723097465227,-1185.87,0.00028493,7]
[334436571,1723097465238,-563.69,0.00028493,7]
[334436572,1723097465247,-500.0,0.00028493,7]
[334436573,1723097465257,-500.0,0.00028493,7]
[334436574,1723097465267,-570.71,0.00028493,7]
[334436575,1723097465278,-500.0,0.00028493,7]
[334436576,1723097465289,-544.93,0.00028493,7]
[334436577,1723097465298,-500.0,0.00028493,7]
[334436578,1723097465308,-500.0,0.00028493,7]
[334436579,1723097465318,-587.75,0.00028493,7]
[334436580,1723097465328,-500.0,0.00028493,7]
[334436581,1723097465338,-500.0,0.00028493,7]
[334436582,1723097465347,-500.0,0.00028493,7]
[334436583,1723097465357,-500.0,0.00028493,7]
[334436584,1723097465369,-500.0,0.00028493,7]
[334436585,1723097465379,-500.0,0.00028493,7]
[334436586,1723097465389,-500.0,0.00028493,7]
[334436587,1723097465400,-500.0,0.00028493,7]
[334436588,1723097465410,-448.38537132,0.00028493,7]
[334436589,1723097465420,-500.0,0.00028493,7]
[334436590,1723097465430,-500.0,0.00028493,7]
[334436591,1723097465440,-647.18,0.00028493,7]
[334436592,1723097465450,-500.0,0.00028493,7]
[334436593,1723097465459,-500.0,0.00028493,7]
[334436594,1723097465469,-500.0,0.00028493,7]
[334436595,1723097465479,-500.0,0.00028493,7]
[334436596,1723097465489,-500.0,0.00028493,7]
[334436597,1723097465499,-500.0,0.00028493,7]
[334436598,1723097465509,-500.0,0.00028493,7]
[334436599,1723097465518,-500.0,0.00028493,7]
[334436600,1723097465528,-500.0,0.00028493,7]
[334436601,1723097465537,-500.0,0.00028493,7]
[334436602,1723097465548,-1176.69,0.00028493,7]
[334436603,1723097465557,-219.47735456,0.00028493,7]
[334436604,1723097465567,-500.0,0.00028493,7]
[334436605,1723097465577,-746.49,0.00028493,7]
[334436606,1723097465587,-522.59,0.00028493,7]
[334436607,1723097465598,-500.0,0.00028493,7]
[334436608,1723097465610,-424.74491404,0.00028493,7]
[334436609,1723097465620,-500.0,0.00028493,7]
[334436610,1723097465630,-500.0,0.00028493,7]
[334436611,1723097465641,-500.0,0.00028493,7]
[334436612,1723097465651,-500.0,0.00028493,7]
[334436613,1723097465661,-513.11740964,0.00028493,7]
[334436614,1723097465671,-615.65,0.00028493,7]
[334436615,1723097465682,-500.0,0.00028493,7]
[334436616,1723097465692,-500.0,0.00028493,7]
[334436617,1723097465703,-500.0,0.00028493,7]
[334436618,1723097465713,-701.56,0.00028493,7]
[334436619,1723097465724,-500.0,0.00028493,7]
[334436620,1723097465735,-500.0,0.00028493,7]
[334436621,1723097465745,-500.0,0.00028493,7]
[334436622,1723097465754,-525.21,0.00028493,7]
[334436623,1723097465764,-914.38,0.00028493,7]
[334436624,1723097465773,-500.0,0.00028493,7]
[334436625,1723097465783,-500.0,0.00028493,7]
[334436626,1723097465792,-500.0,0.00028493,7]
[334436627,1723097465802,-1320.93,0.00028493,7]
[334436628,1723097465811,-1042.79,0.00028493,7]
[334436629,1723097465823,-500.0,0.00028493,7]
[334436630,1723097465835,-676.12,0.00028493,7]
[334436631,1723097465846,-500.0,0.00028493,7]
[334436632,1723097465855,-500.0,0.00028493,7]
[334436633,1723097465864,-500.0,0.00028493,7]
[334436634,1723097465874,-500.0,0.00028493,7]
[334436635,1723097465884,-1274.14,0.00028493,7]
[334436636,1723097465893,-500.0,0.00028493,7]
[334436637,1723097465902,-500.0,0.00028493,7]
[334436638,1723097465912,-1435.68,0.00028493,7]
[334436639,1723097465921,-500.0,0.00028493,7]
[334436640,1723097465931,-500.0,0.00028493,7]
[334436641,1723097465940,-874.42,0.00028493,7]
[334436642,1723097465950,-500.0,0.00028493,7]
[334436643,1723097465959,-500.0,0.00028493,7]
[334436644,1723097465969,-558.4,0.00028493,7]
[334436645,1723097465979,-500.0,0.00028493,7]
[334436646,1723097465988,-1250.57,0.00028493,7]
[334436647,1723097465998,-500.0,0.00028493,7]
[334436648,1723097466008,-500.0,0.00028493,7]
[334436649,1723097466017,-500.0,0.00028493,7]
[334436650,1723097466027,-2155.12,0.00028493,7]
[334436651,1723097466036,-694.77,0.00028493,7]
[334436652,1723097466046,-500.0,0.00028493,7]
[334436653,1723097466055,-500.0,0.00028493,7]
[334436654,1723097466065,-500.0,0.00028493,7]
[334436655,1723097466074,-500.0,0.00028493,7]
[334436656,1723097466083,-500.0,0.00028493,7]
[334436657,1723097466093,-500.0,0.00028493,7]
[334436658,1723097466102,-652.81,0.00028493,7]
[334436659,1723097466316,-455.31374166,0.00028493,7]
[334436660,1723097466326,-200.0,0.00028493,7]
[334436661,1723097466335,-504.71549493,0.00028493,7]
[334436662,1723097466356,-500.0,0.00028493,7]
[334436663,1723097466369,-767.57,0.00028493,7]
[334436664,1723097466380,-500.0,0.00028493,7]
[334436665,1723097466390,-1218.11,0.00028493,7]
[334436666,1723097466400,-1397.27,0.00028493,7]
[334436667,1723097466410,-500.0,0.00028493,7]
[334436668,1723097466420,-500.0,0.00028493,7]
[334436669,1723097466430,-500.0,0.00028493,7]
[334436670,1723097466440,-500.0,0.00028493,7]
[334436671,1723097466451,-1574.69,0.00028493,7]
[334436672,1723097466461,-516.72276589,0.00028493,7]
[334436673,1723097466471,-995.53,0.00028493,7]
[334436674,1723097466484,-1849.78,0.00028493,7]
[334436675,1723097466494,-500.0,0.00028493,7]
[334436676,1723097466511,-442.67631841,0.00028493,7]
[334436677,1723097466520,-502.95820308,0.00028493,7]
[334436678,1723097466530,-2106.63,0.00028493,7]
[334436679,1723097466539,-500.0,0.00028493,7]
[334436680,1723097466550,-500.0,0.00028493,2]
[334436681,1723097466560,-529.59,0.00028493,7]
[334436682,1723097466570,-500.0,0.00028493,7]
[334436683,1723097466580,-603.91,0.00028493,7]
[334436684,1723097466589,-434.04640877,0.00028493,7]
[334436685,1723097466599,-500.0,0.00028493,7]
[334436686,1723097466609,-500.0,0.00028493,7]
[334436687,1723097466619,-604.05867436,0.00028493,7]
[334436688,1723097466629,-2032.38,0.00028493,7]
[334436689,1723097466639,-500.0,0.00028493,7]
[334436690,1723097466649,-500.0,0.00028493,7]
[334436691,1723097466659,-914.44,0.00028493,7]
[334436692,1723097466669,-786.32,0.00028493,7]
[334436693,1723097466678,-500.0,0.00028493,7]
[334436694,1723097466688,-677.89,0.00028493,7]
[334436695,1723097466698,-500.0,0.00028493,7]
[334436696,1723097466708,-500.0,0.00028493,7]
[334436697,1723097466719,-1873.06,0.00028493,7]
[334436698,1723097466731,-500.0,0.00028493,7]
[334436699,1723097466741,-568.08,0.00028493,7]
[334436700,1723097466750,-500.0,0.00028493,7]
[334436701,1723097466760,-500.0,0.00028493,7]
[334436702,1723097466770,-500.0,0.00028493,7]
[334436703,1723097466780,-500.0,0.00028493,7]
[334436704,1723097466790,-744.91,0.00028493,7]
[334436705,1723097466800,-1155.09,0.00028493,7]
[334436706,1723097466810,-925.79,0.00028493,7]
[334436707,1723097466819,-1556.36,0.00028493,7]
[334436708,1723097466829,-500.0,0.00028493,7]
[334436709,1723097466839,-500.0,0.00028493,7]
[334436710,1723097466848,-1001.87,0.00028493,7]
[334436711,1723097466858,-822.61,0.00028493,7]
[334436712,1723097466867,-500.0,0.00028493,7]
[334436713,1723097466877,-500.0,0.00028493,7]
[334436714,1723097466887,-727.37,0.00028493,7]
[334436715,1723097466896,-500.0,0.00028493,7]
[334436716,1723097466905,-556.34,0.00028493,7]
[334436717,1723097466915,-500.0,0.00028493,7]
[334436718,1723097466924,-1119.39,0.00028493,7]
[334436719,1723097466934,-533.76,0.00028493,7]
[334436720,1723097466944,-500.0,0.00028493,7]
[334436721,1723097466954,-1082.35,0.00028493,7]
[334436722,1723097466964,-500.0,0.00028493,7]
[334436723,1723097466973,-209.64030234,0.00028493,7]
[334436724,1723097466985,-526.88,0.00028493,7]
[334436725,1723097466994,-1017.08,0.00028493,7]
[334436726,1723097467004,-1633.61,0.00028493,7]
[334436727,1723097467014,-1757.49,0.00028493,7]
[334436728,1723097467024,-500.0,0.00028493,7]
[334436729,1723097467034,-670.56,0.00028493,7]
[334436730,1723097467044,-674.56,0.00028493,7]
[334436731,1723097467053,-500.0,0.00028493,7]
[334436732,1723097467063,-500.0,0.00028493,7]
[334436733,1723097467072,-752.34,0.00028493,7]
[334436734,1723097467082,-500.0,0.00028493,7]
[334436735,1723097467092,-1005.06,0.00028493,7]
[334436736,1723097467101,-541.27,0.00028493,7]
[334436737,1723097467111,-688.97,0.00028493,7]
[334436738,1723097467120,-500.0,0.00028493,7]
[334436739,1723097467130,-500.0,0.00028493,7]
[334436740,1723097467139,-500.0,0.00028493,7]
[334436741,1723097467149,-504.21530779,0.00028493,7]
[334436742,1723097467159,-577.35,0.00028493,7]
[334436743,1723097467168,-500.0,0.00028493,7]
[334436744,1723097467178,-500.0,0.00028493,7]
[334436745,1723097467188,-596.69,0.00028493,7]
[334436746,1723097467198,-500.0,0.00028493,7]
[334436747,1723097467207,-528.45221219,0.00028493,7]
[334436748,1723097467217,-500.0,0.00028493,7]
[334436749,1723097467227,-558.16489399,0.00028493,7]
[334436750,1723097467239,-1200.63,0.00028493,7]
[334436751,1723097467248,-1719.03,0.00028493,7]
[334436752,1723097467258,-500.0,0.00028493,7]
[334436753,1723097467268,-500.0,0.00028493,7]
[334436754,1723097467278,-682.43388479,0.00028493,7]
[334436755,1723097467703,-24073.99575049,0.00017019,2]
[334436756,1723097467713,-304.80508366,0.0001904,2]
[334436757,1723097467723,-6456.19674024,0.00024931,2]
[334436758,1723097467735,-6456.19674024,0.0002689,2]
[334436759,1723097467745,-608.46585,0.0002699,7]
[334436760,1723097467756,-14185.23,0.00027277,3]
[334436761,1723097467766,-608.46585,0.00027393,7]
[334436762,1723097467777,-608.46585,0.00027397,7]
[334436763,1723097467788,-608.46585,0.00027397,7]
[334436764,1723097467797,-608.46585,0.00027397,7]
[334436765,1723097467807,-608.46585,0.00027397,7]
[334436766,1723097467816,-608.46585,0.00027397,7]
[334436767,1723097467826,-608.46585,0.00027397,7]
[334436768,1723097467835,-500.0,0.00027397,7]
[334436769,1723097467844,-350.49611521,0.00028493,7]
[334436770,1723097467856,-507.8588349,0.00028493,7]
[334436771,1723097467867,-1221.05,0.00028493,7]
[334436772,1723097467876,-500.0,0.00028493,7]
[334436773,1723097467886,-687.5,0.00028493,7]
[334436774,1723097467895,-500.0,0.00028493,7]
[334436775,1723097467904,-500.0,0.00028493,7]
[334436776,1723097467914,-500.0,0.00028493,7]
[334436777,1723097467924,-562.23,0.00028493,7]
[334436778,1723097467933,-509.79773348,0.00028493,7]
[334436779,1723097467942,-500.0,0.00028493,7]
[334436780,1723097467952,-500.0,0.00028493,7]
[334436781,1723097467962,-1584.72,0.00028493,7]
[334436782,1723097467971,-500.0,0.00028493,7]
[334436783,1723097467982,-1735.01,0.00028493,7]
[334436784,1723097467992,-964.29,0.00028493,7]
[334436785,1723097468004,-553.06,0.00028493,7]
[334436786,1723097468015,-500.0,0.00028493,7]
[334436787,1723097468026,-579.2,0.00028493,7]
[334436788,1723097468037,-518.32,0.00028493,7]
[334436789,1723097468047,-1109.54,0.00028493,7]
[334436790,1723097468058,-500.0,0.00028493,7]
[334436791,1723097468069,-307.86246981,0.00028493,7]
[334436792,1723097468079,-500.0,0.00028493,7]
[334436793,1723097468088,-500.0,0.00028493,7]
[334436794,1723097468098,-1294.75,0.00028493,7]
[334436795,1723097468107,-500.0,0.00028493,7]
[334436796,1723097468119,-500.0,0.00028493,7]
[334436797,1723097468133,-500.0,0.00028493,7]
[334436798,1723097468142,-572.08,0.00028493,7]
[334436799,1723097468153,-1565.79,0.00028493,7]
[334436800,1723097468164,-1291.46,0.00028493,7]
[334436801,1723097468173,-552.47,0.00028493,7]
[334436802,1723097468184,-500.0,0.00028493,7]
[334436803,1723097468194,-2418.34,0.00028493,7]
[334436804,1723097468204,-1739.01,0.00028493,7]
[334436805,1723097468214,-500.0,0.00028493,7]
[334436806,1723097468224,-500.0,0.00028493,7]
[334436807,1723097468235,-659.81,0.00028493,7]
[334436808,1723097468244,-500.0,0.00028493,7]
[334436809,1723097468254,-500.0,0.00028493,7]
[334436810,1723097468265,-1068.1,0.00028493,7]
[334436811,1723097468277,-500.0,0.00028493,7]
[334436812,1723097468290,-500.0,0.00028493,7]
[334436813,1723097468302,-500.0,0.00028493,7]
[334436814,1723097468311,-500.0,0.00028493,7]
[334436815,1723097468321,-771.85,0.00028493,7]
[334436816,1723097468331,-500.0,0.00028493,7]
[334436817,1723097468343,-3357.13,0.00028493,7]
[334436818,1723097468353,-4524.16,0.00028493,7]
[334436819,1723097468364,-500.0,0.00028493,7]
[334436820,1723097468375,-500.0,0.00028493,7]
[334436821,1723097468384,-500.0,0.00028493,7]
[334436822,1723097468395,-500.0,0.00028493,7]
[334436823,1723097468406,-3055.56,0.00028493,7]
[334436824,1723097468417,-2860.32,0.00028493,7]
[334436825,1723097468427,-2611.44,0.00028493,7]
[334436826,1723097468437,-500.0,0.00028493,7]
[334436827,1723097468447,-500.0,0.00028493,7]
[334436828,1723097468457,-2173.03,0.00028493,7]
[334436829,1723097468468,-500.0,0.00028493,7]
[334436830,1723097468478,-500.0,0.00028493,7]
[334436831,1723097468488,-501.0,0.00028493,7]
[334436832,1723097468499,-1497.66,0.00028493,7]
[334436833,1723097468511,-2916.59,0.00028493,7]
[334436834,1723097468522,-15082.67,0.00028493,7]
[334436835,1723097468532,-608.74,0.00028493,7]
[334436836,1723097468542,-500.0,0.00028493,7]
[334436837,1723097468553,-500.0,0.00028493,7]
[334436838,1723097468564,-500.0,0.00028493,7]
[334436839,1723097468576,-3210.55,0.00028493,7]
[334436840,1723097468588,-741.46,0.00028493,7]
[334436841,1723097468600,-503.12,0.00028493,7]
[334436842,1723097468611,-527.37,0.00028493,7]
[334436843,1723097468622,-500.0,0.00028493,7]
[334436844,1723097468632,-500.0,0.00028493,7]
[334436845,1723097468642,-919.24,0.00028493,7]
[334436846,1723097468651,-4006.01,0.00028493,7]
[334436847,1723097468660,-500.0,0.00028493,7]
[334436848,1723097468669,-802.71,0.00028493,7]
[334436849,1723097468680,-1094.26,0.00028493,7]
[334436850,1723097468690,-273.61356917,0.00028493,7]
[334436851,1723097468701,-2445.43,0.00028493,7]
[334436852,1723097468711,-2524.39,0.00028493,7]
[334436853,1723097468722,-525.45,0.00028493,7]
[334436854,1723097468734,-500.0,0.00028493,7]
[334436855,1723097468743,-1510.39,0.00028493,7]
[334436856,1723097468752,-500.0,0.00028493,7]
[334436857,1723097468762,-500.0,0.00028493,7]
[334436858,1723097468771,-3917.99,0.00028493,7]
[334436859,1723097468781,-822.17,0.00028493,7]
[334436860,1723097468790,-771.01,0.00028493,7]
[334436861,1723097468800,-500.0,0.00028493,7]
[334436862,1723097468809,-1668.08,0.00028493,7]
[334436863,1723097468819,-500.0,0.00028493,7]
[334436864,1723097468828,-500.0,0.00028493,7]
[334436865,1723097468837,-500.0,0.00028493,7]
[334436866,1723097468846,-1266.97,0.00028493,7]
[334436867,1723097468855,-10380.83,0.00028493,7]
[334436868,1723097468865,-500.0,0.00028493,7]
[334436869,1723097468876,-655.78,0.00028493,7]
[334436870,1723097468885,-1441.39,0.00028493,7]
[334436871,1723097468894,-713.66,0.00028493,7]
[334436872,1723097468903,-514.47,0.00028493,7]
[334436873,1723097468914,-500.0,0.00028493,7]
[334436874,1723097468924,-1177.2,0.00028493,7]
[334436875,1723097468933,-5574.35,0.00028493,7]
[334436876,1723097468943,-1910.12,0.00028493,7]
[334436877,1723097468953,-6251.91,0.00028493,7]
[334436878,1723097468964,-816.09,0.00028493,7]
[334436879,1723097468974,-869.11,0.00028493,7]
[334436880,1723097468986,-913.01,0.00028493,7]
[334436881,1723097468997,-2096.19,0.00028493,7]
[334436882,1723097469007,-1855.07,0.00028493,7]
[334436883,1723097469016,-4052.01,0.00028493,7]
[334436884,1723097469027,-670.22,0.00028493,7]
[334436885,1723097469037,-1462.72,0.00028493,7]
[334436886,1723097469049,-500.0,0.00028493,7]